[Event "Czech Youth U10 Boys 2024"]
[Site "Kouty nad Desnou"]
[Date "2024.03.13"]
[Round "6.3"]
[White "Bucek, Vit"]
[Black "Zelenka, Tomas"]
[Result "1-0"]
[ECO "B01"]
[WhiteElo "1603"]
[BlackElo "1566"]
[Annotator "NA RC"]
[PlyCount "41"]
[EventDate "2024.03.10"]
[EventType "swiss"]
[EventCountry "CZE"]
[SourceTitle "playchess.com"]
[Source "ChessBase"]
[SourceQuality "1"]
[TimeControl "40/5400+30:1800+30"]

1. e4 {[%emt 0:00:01]} d5 {[%emt 0:00:13]} 2. exd5 {[%emt 0:00:07]} Qxd5 {[%emt 0:00:12]} 3. Nc3 {[%emt 0:00:08]} Qa5 {[%emt 0:00:13]} 4. d4 c6 {[%emt 0:00:23]} 5. Bd2 {[%emt 0:00:44]} Nf6 {[%emt 0:00:33]} 6. Bc4 {[%emt 0:00:15]} Qc7 7. Qe2 {[%emt 0:07:27]} Bg4 {[%emt 0:04:43]} 8. f3 {[%emt 0:01:59]} Bf5 {[%emt 0:02:04]} 9. O-O-O {[%emt 0:04:20]} e6 {[%emt 0:03:11]} 10. Kb1 {[%emt 0:02:35]} Bd6 {[%emt 0:02:39]} 11. g4 {[%emt 0:06:07]} Bg6 {[%emt 0:01:13]} 12. h4 {[%emt 0:11:47]} h5 {[%emt 0:03:41]} 13. g5 {[%emt 0:02:40]} Nd5 {[%emt 0:03:27]} 14. Rc1 {[%emt 0:09:41]} Nxc3+ {[%emt 0:08:29]} 15. Bxc3 {[%emt 0:00:47]} Bf5 {[%emt 0:03:12]} 16. d5 {[%emt 0:12:31]} e5 {[%emt 0:16:20]} 17. f4 {[%emt 0:03:01]} Nd7 {[%emt 0:00:24]} 18. fxe5 {[%emt 0:03:04]} Nxe5 {[%emt 0:00:17]} 19. dxc6 {[%emt 0:03:42]} bxc6 {[%emt 0:01:01]} 20. Nf3 {[%emt 0:03:33]} Bg4 {[%emt 0:01:41]} 21. Bxe5 {[%emt 0:01:08]} 1-0

[Event "Czech Youth U10 Boys 2024"]
[Site "Kouty nad Desnou"]
[Date "2024.03.13"]
[Round "6.4"]
[White "Vratny, Vojtech"]
[Black "Lutskiy, Mikhail"]
[Result "0-1"]
[ECO "D10"]
[WhiteElo "1566"]
[BlackElo "1676"]
[Annotator "NA RC"]
[PlyCount "76"]
[EventDate "2024.03.10"]
[EventType "swiss"]
[EventCountry "CZE"]
[SourceTitle "playchess.com"]
[Source "ChessBase"]
[SourceQuality "1"]
[TimeControl "40/5400+30:1800+30"]

1. d4 {[%emt 0:00:16]} d5 {[%emt 0:00:14]} 2. c4 {[%emt 0:00:23]} c6 {[%emt 0:00:08]} 3. cxd5 {[%emt 0:00:28]} cxd5 {[%emt 0:00:10]} 4. Bf4 {[%emt 0:01:10]} Nc6 {[%emt 0:00:25]} 5. Nc3 {[%emt 0:00:40]} Nf6 {[%emt 0:00:29]} 6. e3 {[%emt 0:00:36]} a6 {[%emt 0:00:59]} 7. Bd3 {[%emt 0:01:52]} e6 {[%emt 0:00:19]} 8. Nf3 {[%emt 0:00:53]} Be7 9. O-O {[%emt 0:01:57]} O-O {[%emt 0:01:11]} 10. Rc1 {[%emt 0:01:18]} Bd7 {[%emt 0:01:02]} 11. a3 {[%emt 0:01:40]} Rc8 {[%emt 0:01:32]} 12. b4 {[%emt 0:01:06]} b5 {[%emt 0:01:43]} 13. h3 {[%emt 0:01:06]} h6 {[%emt 0:01:35]} 14. Qb3 {[%emt 0:01:24]} Nh5 {[%emt 0:03:01]} 15. Bh2 {[%emt 0:02:06]} f5 {[%emt 0:02:47]} 16. Ne5 {[%emt 0:07:48]} Nxe5 {[%emt 0:00:41]} 17. dxe5 {[%emt 0:01:50]} g5 {[%emt 0:05:23]} 18. Be2 {[%emt 0:01:49]} Ng7 {[%emt 0:00:45]} 19. Rfd1 {[%emt 0:03:32]} Qe8 {[%emt 0:01:51]} 20. Bf3 {[%emt 0:03:21]} Qg6 {[%emt 0:02:18]} 21. Rd4 {[%emt 0:04:24]} Rc4 {[%emt 0:05:00]} 22. Rcd1 {[%emt 0:02:05]} Bc6 23. Qc2 {[%emt 0:05:04]} Rc8 {[%emt 0:09:05]} 24. Rxc4 {[%emt 0:00:21]} dxc4 {[%emt 0:00:16]} 25. Bxc6 {[%emt 0:00:26]} Rxc6 {[%emt 0:00:23]} 26. Rd4 {[%emt 0:01:38]} Rc8 {[%emt 0:02:00]} 27. Bg3 {[%emt 0:04:55]} Rd8 {[%emt 0:01:22]} 28. Rxd8+ {[%emt 0:00:42]} Bxd8 {[%emt 0:01:06]} 29. Qd2 {[%emt 0:02:02]} Qe8 {[%emt 0:00:26]} 30. Qd4 {[%emt 0:01:19]} Qe7 {[%emt 0:01:32]} 31. Bh2 {[%emt 0:09:55]} Bc7 {[%emt 0:05:02]} 32. Kh1 {[%emt 0:02:03]} Qd8 {[%emt 0:06:49]} 33. Qxd8+ {[%emt 0:01:26]} Bxd8 {[%emt 0:00:23]} 34. e4 {[%emt 0:01:34]} f4 {[%emt 0:00:52]} 35. g3 {[%emt 0:01:06]} Nh5 {[%emt 0:01:59]} 36. gxf4 {[%emt 0:01:14]} Nxf4 {[%emt 0:04:04]} 37. h4 {[%emt 0:00:41]} Bc7 {[%emt 0:00:37]} 38. hxg5 {[%emt 0:00:53]} hxg5 {[%emt 0:00:08]} 0-1

[Event "Czech Youth U10 Boys 2024"]
[Site "Kouty nad Desnou"]
[Date "2024.03.13"]
[Round "6.6"]
[White "Skoloud, Josef"]
[Black "Fadrny, Jonas"]
[Result "1-0"]
[ECO "C01"]
[WhiteElo "1564"]
[BlackElo "1600"]
[Annotator "NA RC"]
[PlyCount "73"]
[EventDate "2024.03.10"]
[EventType "swiss"]
[EventCountry "CZE"]
[SourceTitle "playchess.com"]
[Source "ChessBase"]
[SourceQuality "1"]
[TimeControl "40/5400+30:1800+30"]

1. e4 {[%emt 0:00:10]} e6 {[%emt 0:00:18]} 2. d4 {[%emt 0:00:27]} d5 {[%emt 0:00:21]} 3. exd5 {[%emt 0:00:14]} exd5 {[%emt 0:00:16]} 4. c4 {[%emt 0:00:17]} c6 {[%emt 0:01:41]} 5. Nc3 {[%emt 0:01:22]} Bb4 {[%emt 0:04:18]} 6. Nf3 {[%emt 0:03:11]} Bxc3+ {[%emt 0:01:24]} 7. bxc3 {[%emt 0:00:13]} Nf6 {[%emt 0:02:57]} 8. Bd3 {[%emt 0:05:16]} dxc4 {[%emt 0:01:12]} 9. Bxc4 {[%emt 0:00:12]} O-O {[%emt 0:01:51]} 10. O-O {[%emt 0:00:22]} Re8 {[%emt 0:01:42]} 11. Qb3 {[%emt 0:06:45]} Nd5 {[%emt 0:05:55]} 12. Bg5 {[%emt 0:04:19]} Qd6 {[%emt 0:06:13]} 13. Rfe1 {[%emt 0:02:47]} Be6 {[%emt 0:02:53]} 14. Bxd5 {[%emt 0:03:42]} cxd5 {[%emt 0:01:44]} 15. Qxb7 {[%emt 0:06:06]} Qc6 {[%emt 0:01:32]} 16. Qb2 {[%emt 0:02:06]} f6 {[%emt 0:01:46]} 17. Bf4 {[%emt 0:01:31]} Nd7 {[%emt 0:01:43]} 18. h3 {[%emt 0:05:33]} Nb6 {[%emt 0:05:03]} 19. Qc2 {[%emt 0:05:36]} Nc4 {[%emt 0:01:26]} 20. Nd2 {[%emt 0:05:50]} Nxd2 {[%emt 0:03:48]} 21. Qxd2 {[%emt 0:00:25]} Qc4 {[%emt 0:01:22]} 22. Re3 {[%emt 0:01:08]} Bf5 {[%emt 0:01:02]} 23. Rae1 {[%emt 0:00:48]} Re4 {[%emt 0:03:15]} 24. Rxe4 {[%emt 0:01:19]} Bxe4 {[%emt 0:00:25]} 25. Bd6 {[%emt 0:01:16]} Rd8 {[%emt 0:01:10]} 26. Bc5 {[%emt 0:00:13]} a6 {[%emt 0:02:20]} 27. a3 {[%emt 0:02:36]} Re8 {[%emt 0:02:42]} 28. f3 {[%emt 0:00:37]} Bg6 {[%emt 0:00:17]} 29. Rxe8+ {[%emt 0:01:03]} Bxe8 {[%emt 0:00:16]} 30. Qe1 {[%emt 0:00:19]} Qb5 {[%emt 0:00:41]} 31. Qe6+ {[%emt 0:02:30]} Bf7 {[%emt 0:02:00]} 32. Qd6 {[%emt 0:02:20]} Qe8 {[%emt 0:02:41]} 33. Bb4 {[%emt 0:00:34]} Qe3+ {[%emt 0:00:57]} 34. Kh2 {[%emt 0:00:34]} Qe8 {[%emt 0:00:51]} 35. Qxa6 {[%emt 0:00:35]} Qb8+ {[%emt 0:00:44]} 36. Qd6 {[%emt 0:00:26]} Qc8 {[%emt 0:01:19]} 37. a4 {[%emt 0:01:15]} 1-0

[Event "Czech Youth U10 Boys 2024"]
[Site "Kouty nad Desnou"]
[Date "2024.03.13"]
[Round "6.7"]
[White "Bukovskij, Dmitri"]
[Black "Krivka, Lukas"]
[Result "1-0"]
[ECO "D35"]
[WhiteElo "1665"]
[BlackElo "1567"]
[Annotator "NA RC"]
[PlyCount "119"]
[EventDate "2024.03.10"]
[EventType "swiss"]
[EventCountry "CZE"]
[SourceTitle "playchess.com"]
[Source "ChessBase"]
[SourceQuality "1"]
[TimeControl "40/5400+30:1800+30"]

1. d4 {[%emt 0:00:05]} Nf6 {[%emt 0:00:16]} 2. c4 e6 {[%emt 0:00:23]} 3. Nc3 {[%emt 0:00:21]} d5 {[%emt 0:00:13]} 4. cxd5 {[%emt 0:00:26]} exd5 {[%emt 0:00:10]} 5. Bg5 {[%emt 0:00:43]} Be7 {[%emt 0:00:58]} 6. e3 c6 {[%emt 0:01:18]} 7. Bd3 {[%emt 0:01:43]} O-O {[%emt 0:03:04]} 8. Qc2 {[%emt 0:01:21]} h6 {[%emt 0:01:28]} 9. Bh4 {[%emt 0:00:50]} Ne8 {[%emt 0:01:42]} 10. Bxe7 {[%emt 0:01:34]} Qxe7 {[%emt 0:00:11]} 11. Nf3 {[%emt 0:00:33]} Nd6 {[%emt 0:04:09]} 12. O-O {[%emt 0:00:30]} Nd7 {[%emt 0:11:26]} 13. b4 {[%emt 0:05:19]} Nb6 {[%emt 0:07:08]} 14. b5 Nbc4 {[%emt 0:02:49]} 15. bxc6 {[%emt 0:04:02]} bxc6 {[%emt 0:00:07]} 16. Nd2 {[%emt 0:05:45]} Nxd2 {[%emt 0:12:11]} 17. Qxd2 {[%emt 0:00:14]} Bf5 {[%emt 0:00:12]} 18. Bxf5 {[%emt 0:00:59]} Nxf5 {[%emt 0:00:02]} 19. Qc2 {[%emt 0:00:28]} Nd6 {[%emt 0:02:08]} 20. Rfe1 {[%emt 0:00:22]} Rfe8 {[%emt 0:03:06]} 21. Qa4 {[%emt 0:05:15]} Rec8 {[%emt 0:19:22]} 22. Rab1 {[%emt 0:03:57]} Ne4 {[%emt 0:05:00]} 23. Nxe4 {[%emt 0:00:40]} dxe4 {[%emt 0:00:26]} 24. Rec1 {[%emt 0:00:25]} Qd6 {[%emt 0:06:36]} 25. Rb7 {[%emt 0:02:41]} a5 {[%emt 0:03:21]} 26. Rb6 {[%emt 0:01:19]} Rab8 {[%emt 0:06:39]} 27. Rxb8 {[%emt 0:00:31]} Qxb8 {[%emt 0:01:04]} 28. g3 {[%emt 0:00:53]} Qb4 {[%emt 0:01:04]} 29. Qxb4 {[%emt 0:00:18]} axb4 {[%emt 0:00:04]} 30. Rc4 {[%emt 0:00:56]} Ra8 {[%emt 0:01:07]} 31. Rxb4 {[%emt 0:00:05]} Rxa2 32. Rb8+ {[%emt 0:00:08]} Kh7 {[%emt 0:00:15]} 33. Rb7 {[%emt 0:00:15]} Ra1+ {[%emt 0:00:31]} 34. Kg2 {[%emt 0:00:06]} f5 {[%emt 0:01:50]} 35. h3 {[%emt 0:00:44]} Ra5 {[%emt 0:01:59]} 36. Rc7 {[%emt 0:00:15]} Ra6 {[%emt 0:00:43]} 37. g4 {[%emt 0:00:18]} Ra5 {[%emt 0:03:15]} 38. Rxc6 {[%emt 0:00:23]} fxg4 {[%emt 0:00:04]} 39. hxg4 {[%emt 0:00:15]} Rg5 {[%emt 0:00:06]} 40. Kh3 {[%emt 0:00:13]} Ra5 {[%emt 0:03:32]} 41. Rc5 {[%emt 0:30:15]} Ra2 {[%emt 0:30:26]} 42. Kg3 {[%emt 0:00:24]} Ra1 {[%emt 0:00:13]} 43. Kg2 {[%emt 0:00:11]} Ra6 {[%emt 0:00:49]} 44. Re5 {[%emt 0:00:11]} Rg6 {[%emt 0:00:23]} 45. Rxe4 {[%emt 0:00:18]} h5 {[%emt 0:00:04]} 46. Kh3 {[%emt 0:00:19]} hxg4+ {[%emt 0:00:12]} 47. Rxg4 {[%emt 0:00:10]} Rd6 {[%emt 0:01:19]} 48. Kg3 {[%emt 0:00:07]} Rf6 {[%emt 0:00:29]} 49. Rf4 {[%emt 0:00:19]} Re6 {[%emt 0:00:07]} 50. Kf3 {[%emt 0:00:11]} g6 {[%emt 0:00:56]} 51. e4 {[%emt 0:00:19]} Kg7 {[%emt 0:00:08]} 52. e5 {[%emt 0:00:53]} g5 {[%emt 0:00:20]} 53. Rf5 {[%emt 0:00:36]} Kg6 {[%emt 0:00:11]} 54. Rf6+ {[%emt 0:00:28]} Rxf6+ {[%emt 0:00:05]} 55. exf6 {[%emt 0:00:04]} Kxf6 {[%emt 0:00:10]} 56. Kg4 {[%emt 0:00:03]} Kg6 {[%emt 0:00:35]} 57. d5 {[%emt 0:00:04]} Kf6 {[%emt 0:00:08]} 58. d6 {[%emt 0:00:06]} Ke6 {[%emt 0:00:05]} 59. Kxg5 {[%emt 0:00:04]} Kxd6 {[%emt 0:00:12]} 60. Kf6 {[%emt 0:00:22]} 1-0

[Event "Czech Youth U10 Boys 2024"]
[Site "Kouty nad Desnou"]
[Date "2024.03.13"]
[Round "6.8"]
[White "Hlavacek, Pavel"]
[Black "Rybar, Vojta"]
[Result "1-0"]
[ECO "E81"]
[WhiteElo "1945"]
[BlackElo "1435"]
[Annotator "RC"]
[PlyCount "67"]
[EventDate "2024.03.10"]
[EventType "swiss"]
[EventCountry "CZE"]
[SourceTitle "playchess.com"]
[Source "ChessBase"]
[SourceQuality "1"]
[TimeControl "40/5400+30:1800+30"]

1. d4 {[%emt 0:00:02]} Nf6 {[%emt 0:00:22]} 2. c4 {[%emt 0:00:15]} g6 {[%emt 0:00:09]} 3. Nc3 {[%emt 0:00:34]} Bg7 {[%emt 0:00:10]} 4. e4 {[%emt 0:00:19]} d6 {[%emt 0:00:18]} 5. f3 {[%emt 0:00:44]} O-O {[%emt 0:02:54]} 6. Be3 {[%emt 0:02:21]} Nbd7 {[%emt 0:03:57]} 7. Qd2 {[%emt 0:01:26]} Re8 {[%emt 0:01:54]} 8. g4 {[%emt 0:02:27]} e5 {[%emt 0:02:11]} 9. d5 {[%emt 0:00:43]} Qe7 {[%emt 0:02:49]} 10. O-O-O {[%emt 0:01:24]} Nb6 {[%emt 0:06:57]} 11. h4 {[%emt 0:02:12]} h5 {[%emt 0:03:25]} 12. Bh3 {[%emt 0:09:35]} hxg4 {[%emt 0:01:01]} 13. fxg4 {[%emt 0:00:23]} Nxg4 {[%emt 0:00:09]} 14. Bxg4 {[%emt 0:06:33]} Bxg4 {[%emt 0:00:16]} 15. Bxb6 {[%emt 0:00:10]} Bxd1 {[%emt 0:00:32]} 16. Nxd1 {[%emt 0:00:20]} axb6 {[%emt 0:00:18]} 17. Kb1 {[%emt 0:00:12]} Qd7 {[%emt 0:00:49]} 18. h5 {[%emt 0:00:11]} Qg4 {[%emt 0:01:28]} 19. Nf2 {[%emt 0:00:27]} Qf4 {[%emt 0:00:54]} 20. Qe2 {[%emt 0:01:02]} Bh6 {[%emt 0:00:48]} 21. Ngh3 {[%emt 0:01:02]} Qd2 {[%emt 0:00:52]} 22. Qg4 {[%emt 0:00:29]} Bg7 {[%emt 0:01:56]} 23. hxg6 {[%emt 0:01:18]} fxg6 {[%emt 0:00:09]} 24. Qxg6 {[%emt 0:00:58]} Qh6 {[%emt 0:00:13]} 25. Qg2 {[%emt 0:01:16]} Qf6 {[%emt 0:00:55]} 26. Rf1 {[%emt 0:03:12]} Rf8 {[%emt 0:00:45]} 27. Rg1 {[%emt 0:00:50]} Kf7 {[%emt 0:01:16]} 28. Ng5+ {[%emt 0:02:04]} Ke7 {[%emt 0:00:22]} 29. Nh7 {[%emt 0:00:09]} Qxf2 {[%emt 0:00:11]} 30. Qxg7+ {[%emt 0:01:08]} Rf7 {[%emt 0:00:15]} 31. Qg5+ {[%emt 0:00:11]} Kd7 {[%emt 0:00:45]} 32. Qg4+ {[%emt 0:00:14]} Ke7 {[%emt 0:01:29]} 33. Qe6+ {[%emt 0:00:09]} Kd8 {[%emt 0:00:27]} 34. Rg8+ {[%emt 0:00:13]} 1-0

[Event "Czech Youth U10 Boys 2024"]
[Site "Kouty nad Desnou"]
[Date "2024.03.13"]
[Round "6.9"]
[White "Menkov, Ivan"]
[Black "Kobersky, Matyas"]
[Result "1-0"]
[ECO "B19"]
[WhiteElo "1524"]
[BlackElo "1405"]
[Annotator "NA RC"]
[PlyCount "49"]
[EventDate "2024.03.10"]
[EventType "swiss"]
[EventCountry "CZE"]
[SourceTitle "playchess.com"]
[Source "ChessBase"]
[SourceQuality "1"]
[TimeControl "40/5400+30:1800+30"]

1. e4 {[%emt 0:00:03]} c6 {[%emt 0:00:13]} 2. d4 {[%emt 0:00:10]} d5 {[%emt 0:00:24]} 3. Nc3 {[%emt 0:00:11]} dxe4 {[%emt 0:00:37]} 4. Nxe4 {[%emt 0:00:09]} Bf5 {[%emt 0:01:23]} 5. Ng3 {[%emt 0:00:09]} Bg6 {[%emt 0:00:28]} 6. h4 {[%emt 0:00:13]} h6 {[%emt 0:00:44]} 7. Nf3 {[%emt 0:00:37]} Nd7 {[%emt 0:01:13]} 8. h5 {[%emt 0:00:09]} Bh7 {[%emt 0:00:20]} 9. Bd3 {[%emt 0:00:09]} Bxd3 {[%emt 0:00:38]} 10. Qxd3 {[%emt 0:00:04]} Ngf6 {[%emt 0:00:47]} 11. Bd2 {[%emt 0:00:14]} e6 {[%emt 0:00:52]} 12. O-O-O {[%emt 0:00:14]} Qc7 {[%emt 0:01:15]} 13. Kb1 {[%emt 0:00:26]} O-O-O {[%emt 0:00:25]} 14. Ne4 {[%emt 0:01:01]} Be7 {[%emt 0:01:38]} 15. g3 {[%emt 0:01:38]} Ng4 {[%emt 0:03:32]} 16. Bf4 {[%emt 0:01:18]} Qb6 {[%emt 0:03:07]} 17. Nfd2 {[%emt 0:01:54]} f5 {[%emt 0:01:11]} 18. Nc4 {[%emt 0:00:39]} Qa6 {[%emt 0:02:28]} 19. Ned6+ {[%emt 0:03:03]} Bxd6 {[%emt 0:00:39]} 20. Nxd6+ {[%emt 0:00:07]} Kb8 {[%emt 0:00:23]} 21. Qf3 {[%emt 0:09:06]} e5 {[%emt 0:08:05]} 22. dxe5 {[%emt 0:00:35]} Ngxe5 {[%emt 0:05:06]} 23. Nf7 {[%emt 0:01:00]} Qb5 {[%emt 0:02:09]} 24. Nxh8 {[%emt 0:00:50]} Ka8 {[%emt 0:00:16]} 25. Bxe5 {[%emt 0:00:13]} 1-0

[Event "Czech Youth U10 Boys 2024"]
[Site "Kouty nad Desnou"]
[Date "2024.03.14"]
[Round "7.1"]
[White "Vo, Daniel"]
[Black "Bucek, Vit"]
[Result "0-1"]
[ECO "B45"]
[WhiteElo "1629"]
[BlackElo "1603"]
[Annotator "NA RC"]
[PlyCount "120"]
[EventDate "2024.03.10"]
[EventType "swiss"]
[EventCountry "CZE"]
[SourceTitle "playchess.com"]
[Source "ChessBase"]
[SourceQuality "1"]
[TimeControl "40/5400+30:1800+30"]

1. e4 {[%emt 0:00:02]} c5 {[%emt 0:00:07]} 2. Nf3 {[%emt 0:00:07]} Nc6 {[%emt 0:00:17]} 3. d4 {[%emt 0:00:09]} cxd4 {[%emt 0:00:06]} 4. Nxd4 {[%emt 0:00:14]} Nf6 {[%emt 0:00:05]} 5. Nc3 {[%emt 0:00:34]} e6 {[%emt 0:00:08]} 6. Ndb5 {[%emt 0:00:39]} Bb4 {[%emt 0:00:14]} 7. Nd6+ {[%emt 0:00:12]} Ke7 {[%emt 0:00:07]} 8. Nxc8+ {[%emt 0:00:47]} Rxc8 {[%emt 0:00:14]} 9. Bd3 {[%emt 0:00:35]} Bxc3+ {[%emt 0:00:20]} 10. bxc3 {[%emt 0:00:09]} Re8 {[%emt 0:00:36]} 11. Ba3+ {[%emt 0:00:42]} d6 {[%emt 0:00:19]} 12. O-O {[%emt 0:02:33]} Kf8 {[%emt 0:00:30]} 13. Kh1 {[%emt 0:03:38]} Kg8 {[%emt 0:04:40]} 14. f4 {[%emt 0:02:47]} Qc7 {[%emt 0:20:54]} 15. Qe1 {[%emt 0:05:50]} Na5 {[%emt 0:02:46]} 16. Bb4 {[%emt 0:01:44]} Nc4 {[%emt 0:01:48]} 17. Rb1 {[%emt 0:09:08]} d5 {[%emt 0:12:06]} 18. e5 {[%emt 0:01:46]} Ne4 {[%emt 0:00:44]} 19. Bxe4 {[%emt 0:14:09]} dxe4 {[%emt 0:00:19]} 20. Bd6 {[%emt 0:00:35]} Nxd6 {[%emt 0:01:46]} 21. exd6 {[%emt 0:00:19]} Qxd6 {[%emt 0:00:23]} 22. Qxe4 {[%emt 0:05:15]} b6 {[%emt 0:02:24]} 23. Qa4 {[%emt 0:01:24]} Qd2 {[%emt 0:01:55]} 24. Rf3 {[%emt 0:01:27]} Red8 {[%emt 0:01:12]} 25. h3 {[%emt 0:02:57]} Rxc3 {[%emt 0:00:59]} 26. Rxc3 {[%emt 0:00:59]} Qxc3 {[%emt 0:00:14]} 27. Qxa7 {[%emt 0:00:13]} Qxc2 {[%emt 0:01:41]} 28. Qxb6 {[%emt 0:00:43]} Rc8 {[%emt 0:00:30]} 29. a3 {[%emt 0:01:39]} h6 {[%emt 0:00:54]} 30. Qb4 {[%emt 0:03:22]} Qe2 {[%emt 0:02:02]} 31. a4 {[%emt 0:04:37]} Rc2 {[%emt 0:01:58]} 32. Rg1 {[%emt 0:02:52]} Qc4 {[%emt 0:02:21]} 33. Qb8+ {[%emt 0:00:40]} Kh7 {[%emt 0:00:45]} 34. a5 {[%emt 0:02:08]} Ra2 {[%emt 0:00:39]} 35. Qb1+ {[%emt 0:01:14]} g6 {[%emt 0:01:43]} 36. Rc1 {[%emt 0:04:20]} Qe2 {[%emt 0:03:03]} 37. Qb7 {[%emt 0:01:28]} Kg7 {[%emt 0:00:53]} 38. Qc6 {[%emt 0:01:05]} Qd2 {[%emt 0:03:21]} 39. Qc3+ {[%emt 0:07:47]} Qxc3 {[%emt 0:00:34]} 40. Rxc3 {[%emt 0:00:40]} Rxa5 {[%emt 0:00:03]} 41. Kh2 {[%emt 0:30:56]} Kf6 {[%emt 0:30:15]} 42. g4 {[%emt 0:01:12]} Rd5 {[%emt 0:01:10]} 43. Kg3 {[%emt 0:00:57]} e5 {[%emt 0:02:06]} 44. Rc6+ {[%emt 0:00:25]} Kg7 {[%emt 0:01:19]} 45. fxe5 {[%emt 0:00:25]} Rxe5 {[%emt 0:00:13]} 46. Kf4 {[%emt 0:00:41]} Re6 {[%emt 0:00:56]} 47. Rxe6 {[%emt 0:01:39]} fxe6 {[%emt 0:00:13]} 48. Ke5 {[%emt 0:00:33]} Kf7 {[%emt 0:02:05]} 49. h4 {[%emt 0:01:06]} h5 {[%emt 0:00:36]} 50. gxh5 {[%emt 0:01:30]} gxh5 {[%emt 0:00:09]} 51. Kf4 {[%emt 0:00:12]} Kf6 {[%emt 0:00:09]} 52. Ke4 {[%emt 0:00:08]} e5 {[%emt 0:00:05]} 53. Ke3 {[%emt 0:00:03]} Kf5 {[%emt 0:00:08]} 54. Kf3 {[%emt 0:00:01]} e4+ {[%emt 0:00:18]} 55. Ke3 {[%emt 0:00:05]} Ke5 {[%emt 0:00:16]} 56. Ke2 {[%emt 0:00:10]} Kf4 {[%emt 0:00:06]} 57. Kf2 {[%emt 0:00:00]} e3+ {[%emt 0:00:17]} 58. Ke2 {[%emt 0:00:01]} Ke4 {[%emt 0:00:21]} 59. Ke1 {[%emt 0:00:05]} Kf3 {[%emt 0:00:30]} 60. Kf1 {[%emt 0:00:05]} Kg3 0-1

[Event "Czech Youth U10 Boys 2024"]
[Site "Kouty nad Desnou"]
[Date "2024.03.14"]
[Round "7.2"]
[White "Lutskiy, Mikhail"]
[Black "Vydra, David"]
[Result "1/2-1/2"]
[ECO "B51"]
[WhiteElo "1676"]
[BlackElo "1583"]
[Annotator "NA RC"]
[PlyCount "107"]
[EventDate "2024.03.10"]
[EventType "swiss"]
[EventCountry "CZE"]
[SourceTitle "playchess.com"]
[Source "ChessBase"]
[SourceQuality "1"]
[TimeControl "40/5400+30:1800+30"]

1. e4 {[%emt 0:00:03]} c5 {[%emt 0:00:07]} 2. Nf3 {[%emt 0:00:12]} d6 {[%emt 0:00:13]} 3. Bb5+ {[%emt 0:00:46]} Nd7 {[%emt 0:00:16]} 4. O-O {[%emt 0:00:25]} a6 {[%emt 0:01:09]} 5. Bd3 {[%emt 0:00:20]} Ngf6 {[%emt 0:00:20]} 6. c3 {[%emt 0:00:35]} e6 {[%emt 0:01:41]} 7. Re1 {[%emt 0:00:16]} Be7 {[%emt 0:01:03]} 8. Bc2 {[%emt 0:02:25]} O-O {[%emt 0:03:45]} 9. d4 {[%emt 0:00:24]} cxd4 {[%emt 0:00:10]} 10. cxd4 {[%emt 0:00:11]} b5 {[%emt 0:01:13]} 11. Bf4 {[%emt 0:00:27]} Bb7 {[%emt 0:00:31]} 12. a3 {[%emt 0:00:41]} Rc8 {[%emt 0:02:40]} 13. Nc3 {[%emt 0:00:42]} Nb6 {[%emt 0:03:28]} 14. Nd2 {[%emt 0:03:27]} Qc7 {[%emt 0:04:07]} 15. Bg3 {[%emt 0:05:46]} Rfd8 {[%emt 0:05:01]} 16. Rc1 {[%emt 0:00:48]} Qd7 {[%emt 0:02:07]} 17. Qe2 {[%emt 0:01:47]} Qe8 {[%emt 0:13:08]} 18. f4 {[%emt 0:01:51]} a5 {[%emt 0:02:29]} 19. Qxb5 {[%emt 0:01:46]} Qxb5 {[%emt 0:00:19]} 20. Nxb5 {[%emt 0:00:13]} Ba6 {[%emt 0:01:21]} 21. Nc3 {[%emt 0:00:30]} Rd7 {[%emt 0:01:11]} 22. Bb3 {[%emt 0:09:21]} Nh5 {[%emt 0:03:22]} 23. Kf2 {[%emt 0:02:58]} Bf6 {[%emt 0:03:44]} 24. Nf3 {[%emt 0:01:09]} Rb7 {[%emt 0:03:00]} 25. Ba2 {[%emt 0:04:01]} Nc4 {[%emt 0:00:53]} 26. Bxc4 {[%emt 0:00:44]} Rxc4 {[%emt 0:00:12]} 27. Rc2 {[%emt 0:06:11]} Bxd4+ {[%emt 0:03:34]} 28. Nxd4 {[%emt 0:00:22]} Rxd4 {[%emt 0:00:57]} 29. Ne2 {[%emt 0:00:46]} Rc4 {[%emt 0:00:44]} 30. Rxc4 {[%emt 0:01:02]} Bxc4 {[%emt 0:00:10]} 31. Rc1 {[%emt 0:00:16]} d5 {[%emt 0:00:24]} 32. exd5 {[%emt 0:00:48]} exd5 {[%emt 0:00:59]} 33. Rc2 {[%emt 0:00:51]} h6 {[%emt 0:00:20]} 34. Nd4 {[%emt 0:01:38]} a4 {[%emt 0:01:50]} 35. Kf3 {[%emt 0:10:49]} Nxg3 {[%emt 0:02:41]} 36. Kxg3 {[%emt 0:00:55]} Re7 {[%emt 0:00:59]} 37. Kf3 {[%emt 0:06:10]} g6 {[%emt 0:02:16]} 38. Nc6 {[%emt 0:01:37]} Re1 {[%emt 0:01:39]} 39. Ne5 {[%emt 0:00:41]} Bb3 {[%emt 0:00:36]} 40. Rd2 {[%emt 0:01:09]} Kg7 {[%emt 0:00:49]} 41. Nd3 {[%emt 0:31:01]} Re8 {[%emt 0:31:54]} 42. Nc5 {[%emt 0:03:23]} Rb8 {[%emt 0:01:01]} 43. g3 {[%emt 0:02:52]} Rb5 {[%emt 0:01:20]} 44. Nxb3 {[%emt 0:01:26]} Rxb3+ {[%emt 0:00:06]} 45. Kg4 {[%emt 0:00:14]} Kf6 {[%emt 0:00:25]} 46. Rxd5 {[%emt 0:00:14]} Rxb2 {[%emt 0:00:11]} 47. Ra5 {[%emt 0:00:14]} Rxh2 {[%emt 0:00:21]} 48. Rxa4 {[%emt 0:00:12]} h5+ {[%emt 0:00:30]} 49. Kf3 {[%emt 0:00:16]} h4 {[%emt 0:00:40]} 50. gxh4 {[%emt 0:00:20]} Rxh4 {[%emt 0:00:07]} 51. Ra7 {[%emt 0:00:39]} Rh1 {[%emt 0:00:40]} 52. a4 {[%emt 0:00:15]} Rf1+ {[%emt 0:00:09]} 53. Ke3 {[%emt 0:00:33]} Re1+ {[%emt 0:00:10]} 54. Kf3 {[%emt 0:00:35]} 1/2-1/2

[Event "Czech Youth U10 Boys 2024"]
[Site "Kouty nad Desnou"]
[Date "2024.03.14"]
[Round "7.3"]
[White "Bartak, Tobias"]
[Black "Trejbal, Jindrich"]
[Result "0-1"]
[ECO "A40"]
[WhiteElo "1545"]
[BlackElo "1947"]
[Annotator "RC"]
[PlyCount "54"]
[EventDate "2024.03.10"]
[EventType "swiss"]
[EventCountry "CZE"]
[SourceTitle "playchess.com"]
[Source "ChessBase"]
[SourceQuality "1"]
[TimeControl "40/5400+30:1800+30"]

1. d4 {[%emt 0:00:06]} g6 {[%emt 0:00:30]} 2. Nf3 {[%emt 0:00:33]} Bg7 {[%emt 0:00:27]} 3. g3 {[%emt 0:00:40]} e6 {[%emt 0:00:25]} 4. Bg2 {[%emt 0:01:20]} Ne7 {[%emt 0:00:26]} 5. O-O {[%emt 0:01:32]} O-O {[%emt 0:01:03]} 6. c4 {[%emt 0:02:55]} b6 {[%emt 0:01:16]} 7. Nc3 {[%emt 0:02:36]} Bb7 {[%emt 0:02:04]} 8. e3 {[%emt 0:03:10]} d6 {[%emt 0:03:27]} 9. Qc2 {[%emt 0:06:37]} Nd7 {[%emt 0:05:05]} 10. Bd2 {[%emt 0:04:50]} c5 {[%emt 0:04:48]} 11. Rfd1 {[%emt 0:06:50]} a6 {[%emt 0:06:57]} 12. a4 Qc7 {[%emt 0:03:11]} 13. b3 {[%emt 0:14:24]} Nf6 {[%emt 0:03:51]} 14. Be1 {[%emt 0:14:16]} Rad8 {[%emt 0:07:51]} 15. Qa2 {[%emt 0:04:39]} Nc6 {[%emt 0:07:14]} 16. d5 exd5 {[%emt 0:01:37]} 17. Nxd5 {[%emt 0:03:26]} Nxd5 {[%emt 0:01:26]} 18. cxd5 {[%emt 0:00:13]} Nb4 {[%emt 0:01:27]} 19. Bxb4 {[%emt 0:00:12]} Bxa1 {[%emt 0:00:45]} 20. Qxa1 {[%emt 0:01:56]} cxb4 {[%emt 0:01:01]} 21. Rc1 {[%emt 0:01:44]} Qe7 {[%emt 0:03:13]} 22. Qd4 {[%emt 0:01:38]} Rc8 {[%emt 0:05:12]} 23. Rd1 {[%emt 0:01:03]} Rc5 {[%emt 0:04:28]} 24. Ne1 {[%emt 0:01:57]} Rfc8 {[%emt 0:05:01]} 25. Nd3 {[%emt 0:04:01]} Rc3 {[%emt 0:05:20]} 26. Qxb4 {[%emt 0:03:38]} Qd7 {[%emt 0:00:56]} 27. Qxb6 {[%emt 0:04:29]} Rxd3 {[%emt 0:00:57]} 0-1